Cogmind - Beta 10.2 @@@ ROGUE MODE // 2021.02.21 @ 11:48:48 Player: Cookedpoo Result: Destroyed by L-61 Swordsman with Power Sword Performance ------------- Evolutions (8) 4000 Regions Visited (19) 3800 Robots Destroyed (389) 1945 Value Destroyed (17666) 17666 Prototype IDs (43) 860 Alien Tech Used (0) 0 Bonus (11526) 11526 TOTAL SCORE: 39797 Bonus ------- Triggered High Security 500 High Alert Combat Kills 5098 Follower Combat Kills 566 Met Warlord at Base 500 MAIN.C Attacked Warlord 500 Warlord Defense Kill 1084 Met Warlord at Research 2000 Invited to Help at Command 2000 Friendly Fire -722 Cogmind --------- Core Integrity 0/1450 Matter 78/300 Energy 3/100 System Corruption 5% Temperature Cool (16) Movement Immobile (Siege) Ox1 Location -2/Research Parts ------- > --- POWER (2) -------- (None) > --- PROPULSION (4) --- Enhanced Armored Heavy Treads > --- UTILITY (15) ----- Advanced Heat Sink Advanced Heat Sink High-capacity Storage Unit High-capacity Storage Unit Experimental Optical Array Experimental Targeting Computer Experimental Targeting Computer Experimental Core Analyzer Advanced Armor Integrity Analyzer Quantum Capacitor Advanced Weapon Cycler Improved Focal Shield > --- WEAPON (2) ------- Enhanced Nova Cannon > --- INVENTORY (20) --- Particle Reactor Improved Quantum Reactor Enhanced Armored Heavy Treads Advanced Heavy Siege Treads Centrium Wheel Heavy Disruptor Cannon Enhanced Nova Cannon Heavy Gauss Cannon Heavy Gauss Cannon Heavy Gauss Cannon Graviton Cannon Plasma Lance Peak State ------------ > --- POWER ------------ Quantum Reactor Light Quantum Reactor > --- PROPULSION ------- Biometal Heavy Treads Enhanced Armored Heavy Treads > --- UTILITY ---------- Advanced Heat Sink High-capacity Storage Unit High-capacity Storage Unit Experimental Optical Array Experimental Targeting Computer Experimental Targeting Computer Experimental Targeting Computer Experimental Core Analyzer Advanced Armor Integrity Analyzer Quantum Capacitor Advanced Weapon Cycler Centrium Medium Armor Plating Centrium Medium Armor Plating Improved Focal Shield > --- WEAPON ----------- Compact Linear Accelerator Graviton Cannon > --- INVENTORY -------- Particle Reactor Improved Quantum Reactor Enhanced Armored Heavy Treads Enhanced Armored Heavy Treads Advanced Heavy Siege Treads Centrium Wheel Heavy Disruptor Cannon Enhanced Nova Cannon Enhanced Nova Cannon Enhanced Nova Cannon Heavy Gauss Cannon Heavy Gauss Cannon Heavy Gauss Cannon Fusion Bomb Launcher Plasma Lance [Rating: 187] Favorites ----------- Power Light Ion Engine Engine Light Ion Engine Power Core Reinforced Fission Core Reactor Antimatter Reactor Propulsion Light Treads Treads Light Treads Leg Myomer Leg Wheel Compact Wheel Flight Unit Improved VTOL Module Utility High-capacity Storage Unit Device Advanced Sensor Array Storage High-capacity Storage Unit Processor Advanced Armor Integrity Analyzer Hackware Hacking Suite Protection Centrium Light Armor Plating Weapon Bore Cannon Energy Gun Small Laser Energy Cannon Heavy Disruptor Cannon Ballistic Gun Enhanced Autogun Ballistic Cannon Bore Cannon Launcher EMP Blaster Slashing Weapon Greatsword Piercing Weapon Plasma Lance Build | -11 -10 -10 -9 -9 -9 -8 -8 -7 -6 -6 -6 -5 -5 -5 -5 -4 -4 -3 -2 ------- Run | Scr Mat Min Mat Min Exi Min Mat Fac Fac Was Fac Fac Upp Upp War Pro Fac Res Res Slots Evolved 16 | . . . 2 . . . 2 2 2 . . 2 . . . . 2 2 2 Power 1 | . . . . . . . . . . . . . . . . . 1 . . Propulsion 2 | . . . 1 . . . . . . . . 1 . . . . . . . Utility 13 | . . . 1 . . . 2 2 2 . . 1 . . . . 1 2 2 Weapon . | . . . . . . . . . . . . . . . . . . . . Parts Attached 435 | 6 29 1 31 17 1 3 53 48 5 26 1 8 2 2 13 16 32 19 122 Power 44 | 1 3 . 2 2 . . 7 5 . 2 . . . . 1 2 2 2 15 Engine 13 | 1 3 . 2 2 . . 3 2 . . . . . . . . . . . Core 9 | . . . . . . . 4 3 . . . . . . . 1 . 1 . Reactor 22 | . . . . . . . . . . 2 . . . . 1 1 2 1 15 Propulsion 105 | 2 7 1 17 5 . . 18 10 . 5 1 2 . 2 3 5 2 4 21 Treads 88 | 1 3 . 10 5 . . 17 10 . 5 1 2 . 2 3 5 1 3 20 Leg 1 | . . . . . . . . . . . . . . . . . 1 . . Wheel 14 | 1 4 1 6 . . . . . . . . . . . . . . 1 1 Hover . | . . . . . . . . . . . . . . . . . . . . Flight 2 | . . . 1 . . . 1 . . . . . . . . . . . . Utility 141 | 1 9 . 3 . 1 . 10 17 5 5 . 6 2 . 5 3 21 11 42 Device 63 | . . . . . . . 1 1 3 1 . 4 . . 2 2 18 8 23 Storage 26 | 1 9 . 2 . 1 . 3 5 . 1 . . . . . 1 2 1 . Processor 20 | . . . 1 . . . . 2 1 2 . . . . 3 . 1 2 8 Hackware 3 | . . . . . . . . 2 . . . . 1 . . . . . . Protection 29 | . . . . . . . 6 7 1 1 . 2 1 . . . . . 11 Artifact . | . . . . . . . . . . . . . . . . . . . . Weapon 145 | 2 10 . 9 10 . 3 18 16 . 14 . . . . 4 6 7 2 44 Energy Gun 14 | . 5 . 2 . . . 2 . . 2 . . . . . . . . 3 Energy Cannon 22 | . . . . . . . . . . . . . . . . . 5 2 15 Ballistic Gun 62 | 2 5 . 7 6 . 3 14 10 . 10 . . . . 1 2 1 . 1 Ballistic Cannon 21 | . . . . . . . . . . 2 . . . . 2 3 1 . 13 Launcher 22 | . . . . 4 . . 1 5 . . . . . . 1 1 . . 10 Special Weapon . | . . . . . . . . . . . . . . . . . . . . Impact Weapon . | . . . . . . . . . . . . . . . . . . . . Slashing Weapon 2 | . . . . . . . 1 1 . . . . . . . . . . . Piercing Weapon 2 | . . . . . . . . . . . . . . . . . . . 2 Special Melee Weapon . | . . . . . . . . . . . . . . . . . . . . Unidentified Prototypes 30 | . . . 3 . . . 4 . 1 . . . . . 6 . 2 1 13 Parts Lost 76 | . 1 . 1 11 . . 1 5 . 8 . . . . . 9 2 3 35 Power 17 | . . . . 2 . . . 2 . 2 . . . . . 2 1 1 7 Propulsion 21 | . . . 1 5 . . . 1 . 2 . . . . . 4 . 1 7 Utility 17 | . . . . . . . . 2 . 2 . . . . . 1 . 1 11 Weapon 21 | . 1 . . 4 . . 1 . . 2 . . . . . 2 1 . 10 Highest Loss Streak 12 | . 1 . 1 8 . . 1 1 . 6 . . . . . 4 2 2 12 Average Slot Usage (%) 90 | . 97 100 99 98 96 88 89 93 99 79 86 91 93 94 93 91 75 78 85 Engine 4 | . 14 14 11 9 11 11 3 5 . . . . . . . . . . . Core 1 | . . . . . . . 5 . 6 . . . . . . 2 5 2 . Reactor 2 | . . . . . . . . . . 4 6 5 5 5 5 1 1 5 7 Treads 18 | . 14 14 20 30 33 33 26 22 20 11 13 17 17 17 17 16 10 8 7 Wheel 3 | . 13 14 12 2 . . . . . . . . . . . . . 1 2 Device 6 | . . . . . . . . . 13 7 6 14 17 17 16 10 8 11 16 Storage 15 | . 25 28 21 22 18 11 16 17 20 7 6 5 5 5 5 5 10 13 11 Processor 15 | . . . 10 11 11 11 9 9 6 16 20 17 17 17 17 29 28 27 26 Hackware 3 | . . . . . . . . 11 13 13 13 11 10 11 11 11 4 . . Protection 3 | . . . . . . . 9 8 5 3 6 5 5 5 4 . . . 4 Ballistic Gun 11 | . 22 28 21 20 22 22 17 14 13 8 . . . . . 4 . . . Ballistic Cannon 2 | . . . . . . . . . . 2 13 11 11 11 10 4 . . 3 Naked Turns . | . . . . . . . . . . . . . . . . . . . . Heaviest Build 195 | 11 73 70 78 78 89 91 134 139 114 120 82 97 90 87 87 79 123 158 195 Greatest Support 155 | 16 20 16 26 69 66 66 69 76 76 98 100 128 127 127 125 126 140 140 155 Greatest Overweight (x) 10 | . 4 6 7 6 1 1 5 2 1 3 . . . . . . . 9 10 Average Overweight (x) 2 | . 2 5 4 2 . 1 1 1 1 . . . . . . . . 2 4 Largest Inventory Capacity 32 | 6 20 20 20 20 24 24 32 32 28 28 12 12 12 12 12 16 20 28 28 Average Capacity 21 | 5 15 20 19 20 20 24 30 30 28 13 12 12 12 12 12 12 17 27 25 Most Carried 32 | 6 18 18 20 20 24 24 32 32 28 28 12 12 12 12 12 12 20 28 28 Average Carried 20 | 4 12 17 19 17 19 24 29 29 27 13 12 11 12 12 11 9 16 23 23 Final Capacity 32 | 6 20 20 20 20 24 24 32 28 28 12 12 12 12 12 12 16 20 28 20 Final Carried 32 | 6 17 18 20 19 24 24 32 28 28 12 12 12 12 12 12 9 20 28 15 Class Distribution -------------------- 52% | Hauler-Mutant 18% | Scavenger-Mutant 11% | Hacker-Mutant 9% | Scavenger-Skirmisher 5% | Mutant Dominant Class ---------------- Mutant | -10/Materials Hauler-Mutant | -10/Mines Hauler-Mutant | -9/Materials Hauler-Mutant | -9/Mines Hauler-Mutant | -9/Exiles Hauler-Mutant | -8/Mines Hauler-Mutant | -8/Materials Hauler-Mutant | -7/Factory Hauler-Mutant | -6/Factory Hacker-Mutant | -6/Waste Hacker-Mutant | -6/Factory Scavenger-Mutant | -5/Factory Hacker-Mutant | -5/Upper Caves Hacker-Mutant | -5/Upper Caves Hacker-Mutant | -5/Warlord Scavenger-Mutant | -4/Proximity Caves Scavenger-Skirmisher | -4/Factory Scavenger-Skirmisher | -3/Research Scavenger-Mutant | -2/Research Resources | -11 -10 -10 -9 -9 -9 -8 -8 -7 -6 -6 -6 -5 -5 -5 -5 -4 -4 -3 -2 ----------- Run | Scr Mat Min Mat Min Exi Min Mat Fac Fac Was Fac Fac Upp Upp War Pro Fac Res Res Matter Collected 11637 | 278 561 132 1013 760 . 152 1257 1359 32 676 . 615 48 28 423 700 345 197 3061 Remotely . | . . . . . . . . . . . . . . . . . . . . Salvage Created 18811 | 95 849 113 1785 887 . 243 1874 2925 32 1699 . 1020 33 58 577 1064 847 311 4399 Parts 836 | 3 59 10 112 33 . 15 112 142 5 30 . 57 2 2 24 20 26 16 168 Haulers Intercepted 11 | . 2 . 6 . . . 2 1 . . . . . . . . . . . Recyclers Shooed 17 | . 1 . 2 . . . 3 7 . . . . . . . . 3 1 . Parts Field Recycled . | . . . . . . . . . . . . . . . . . . . . Retrieved Matter . | . . . . . . . . . . . . . . . . . . . . Parts Self-Destructed 94 | . . . . . . . . . . . . . 11 5 60 18 . . . Prevented 14 | . . . . . . . . . . . . . 2 . 12 . . . . Kills | -11 -10 -10 -9 -9 -9 -8 -8 -7 -6 -6 -6 -5 -5 -5 -5 -4 -4 -3 -2 ------- Run | Scr Mat Min Mat Min Exi Min Mat Fac Fac Was Fac Fac Upp Upp War Pro Fac Res Res Combat Hostiles Destroyed 343 | . 22 2 34 34 . 4 38 46 . 6 . 15 1 1 10 20 8 7 95 Guns 180 | . 22 2 34 22 . 4 35 31 . 6 . . . . 2 11 . . 11 Cannons 88 | . . . . . . . . . . . . 15 1 1 7 5 4 4 51 AOE 64 | . . . . 11 . . 3 14 . . . . . . 1 4 . . 31 Classes Destroyed 25 | 1 5 1 3 3 . 1 . 4 . 1 . . . . 1 1 . . 4 Worker 14 | . . . 1 1 . 2 1 6 2 . . 1 . . . . . . . Builder 4 | . 1 . . . . . . 2 . . . 1 . . . . . . . Tunneler 2 | . . 1 . . . . . . . . . . . . . . . . 1 Hauler 11 | . 2 . 6 . . . 2 1 . . . . . . . . . . . Recycler 16 | 1 1 . 3 1 . . 2 6 . . . 1 . . . . 1 . . Mechanic 1 | . . . . . . . . 1 . . . . . . . . . . . Operator 6 | . 1 . 2 . . . 2 . . . . . . . . . . . 1 Watcher 6 | . . . 1 . . . 2 . . . . . . . . . 3 . . Swarmer 81 | . 9 . 13 6 . . 12 8 . . . . . . . 2 . . 31 Saboteur 1 | . . . . . . . . . . . . . . . . 1 . . . Grunt 118 | . 13 2 12 6 . 2 14 25 . . . 5 1 . 7 9 3 . 19 Brawler 6 | . . . . . . . . 2 . . . . . . . 1 . . 3 Duelist 16 | . . . . 1 . 1 1 3 . . . 1 . . . 5 . . 4 Protector 3 | . . . . . . . . 1 . . . . . . 1 . . . 1 Sentry 30 | . . . 9 . . . 9 3 . . . 2 . 1 . 2 1 1 2 Demolisher 6 | . . . . 2 . . . . . . . . . . 1 . . . 3 Specialist 1 | . . . . . . . . . . . . . . . 1 . . . . Hunter 15 | . . . . . . 1 2 . . . . 5 . . . . 2 2 3 Programmer 17 | . . . . . . . . 4 . . . 2 . . . . 2 4 5 Behemoth 1 | . . . . . . . . . . . . . . . . . . . 1 Compactor 6 | . . . . . . . . . . 6 . . . . . . . . . Investigator 1 | . . . . . . . . . . . . . . . . . . . 1 Striker 11 | . . . . . . . . . . . . . . . . . . . 11 Executioner 12 | . . . . . . . . . . . . . . . . . . . 12 Assembled 19 | . . . . 19 . . . . . . . . . . . . . . . Surgeon 1 | . . . . . . . . . . . . 1 . . . . . . . Thug 1 | . . . . . . . . . . . . . . . 1 . . . . Butcher 1 | . . . . . . . . . . . . . . . 1 . . . . Guerrilla 1 | . . . . . . . . . . . . . . . . . . . 1 Best Kill Streak 18 | 1 4 2 6 5 . 4 7 18 2 2 . 7 1 1 5 7 3 2 13 Combat Bots Only 13 | . 4 1 5 5 . 3 6 8 . 2 . 7 1 1 5 7 2 2 13 Max Kills in Single Turn 6 | 1 2 2 2 3 . 1 2 6 1 1 . 1 1 1 2 2 1 1 4 Gunslinging 1 | . 1 . 1 . . . . . . . . . . . . . . . . Exploded 4 | . . . . 3 . . 2 4 . . . . . . 1 2 . . 4 Melee . | . . . . . . . . . . . . . . . . . . . . Uniques/NPCs Destroyed . | . . . . . . . . . . . . . . . . . . . . Combat | -11 -10 -10 -9 -9 -9 -8 -8 -7 -6 -6 -6 -5 -5 -5 -5 -4 -4 -3 -2 -------- Run | Scr Mat Min Mat Min Exi Min Mat Fac Fac Was Fac Fac Upp Upp War Pro Fac Res Res Damage Taken 30339 | . 882 146 1108 1820 . 279 1867 2510 . 328 . 955 . . 735 2269 948 718 15774 Core 2972 | . 119 17 167 164 . 32 248 218 . 131 . 62 . . 81 235 . 15 1483 Absorbed by Shields 1082 | . . . . . . . . . . . . 144 . . 10 . . . 928 Reduced by Siege Mode 1143 | . . . . . . . . . . . . 56 . . . 10 49 108 920 Core Remaining (%) 68 | 100 . 45 . . . 9 54 68 . . 84 . . . . 62 100 98 . Volleys Fired 1032 | 3 76 12 118 92 . 14 109 133 2 49 . 42 2 2 20 46 44 48 220 Largest 2 | 2 2 2 2 2 . 2 2 2 2 2 . 2 2 2 2 2 2 1 2 Hottest 166 | 40 80 40 46 46 . 56 56 61 50 58 . 114 114 114 114 95 166 110 140 Shots Fired 1828 | 6 152 23 236 163 . 28 215 248 4 95 . 75 4 4 40 89 49 48 349 Gun 1235 | 6 152 23 236 142 . 28 213 235 4 95 . . . . 6 44 . . 51 Cannon 531 | . . . . . . . . . . . . 75 4 4 34 43 49 48 274 Launcher 62 | . . . . 21 . . 2 13 . . . . . . . 2 . . 24 Special . | . . . . . . . . . . . . . . . . . . . . Kinetic 1572 | 6 117 23 236 142 . 28 213 235 4 95 . 75 4 4 40 87 5 . 258 Thermal 114 | . 31 . . . . . . . . . . . . . . . 16 32 35 Explosive 21 | . . . . . . . . . . . . . . . . . . . 21 Electromagnetic 116 | . 4 . . 21 . . 2 13 . . . . . . . . 28 16 32 Entropic 5 | . . . . . . . . . . . . . . . . 2 . . 3 Robot Hit Streak 38 | 3 12 5 23 16 . 6 33 19 3 19 . 16 6 1 4 17 11 13 38 Robot Miss Streak 11 | 1 4 2 4 4 . 2 3 3 . 1 . 4 2 4 11 3 3 2 5 Penetration Max 2 | . . . . . . 1 1 . . . . 2 . . 1 1 . . 1 Secondary Targets 24 | . 7 1 6 1 . 1 1 4 . 3 . . . . . . . . . Max Gunslinging Chain 1 | . 1 1 1 1 . 1 1 1 . 1 . . . . . . . . . Capacitor 143 | . . . . . . . . . . . . . . . . . 38 48 57 Shots Hit Robots 1341 | 4 100 16 171 102 . 19 170 186 3 85 . 47 2 1 15 67 39 42 272 Core Hits 748 | 1 40 6 62 64 . 10 75 116 2 39 . 28 1 1 15 50 23 17 198 Critical Hits 164 | . 1 . . 1 . 2 2 . . 1 . 39 2 2 21 19 2 3 69 Critical Kills 64 | . 1 . . . . 1 1 . . . . 17 1 1 8 3 . . 31 Critical Parts Destroyed 89 | . . . . 1 . 1 1 . . . . 22 1 1 11 15 1 3 32 Melee Attacks 4 | . . . . . . . 1 3 . . . . . . . . . . . Impact . | . . . . . . . . . . . . . . . . . . . . Slashing 4 | . . . . . . . 1 3 . . . . . . . . . . . Piercing . | . . . . . . . . . . . . . . . . . . . . Sneak Attacks . | . . . . . . . . . . . . . . . . . . . . Combat Hostiles . | . . . . . . . . . . . . . . . . . . . . Follow-up Attacks . | . . . . . . . . . . . . . . . . . . . . Damage Inflicted 43324 | 50 1236 163 2447 1834 . 352 3685 5801 55 1745 . 1200 52 39 909 2995 1790 1786 17185 Guns 17168 | 50 1236 163 2447 1255 . 352 3419 3154 55 1745 . . . . 180 1377 . . 1735 Cannons 14280 | . . . . . . . . . . . . 1200 52 39 729 625 1614 1786 8235 Explosions 11875 | . . . . 579 . . 266 2647 . . . . . . . 993 175 . 7215 Melee . | . . . . . . . . . . . . . . . . . . . . Ramming 1 | . . . . . . . . . . . . . . . . . 1 . . Kinetic 25821 | 50 915 163 2447 1255 . 352 3419 3154 55 1745 . 1200 52 39 909 2002 137 . 7927 Thermal 4543 | . 275 . . . . . 63 1069 . . . . . . . . 626 1278 1232 Explosive 5993 | . . . . . . . . 450 . . . . . . . . 114 . 5429 Electromagnetic 4187 | . 46 . . 579 . . 203 1128 . . . . . . . . 912 508 811 Impact . | . . . . . . . . . . . . . . . . . . . . Slashing . | . . . . . . . . . . . . . . . . . . . . Piercing . | . . . . . . . . . . . . . . . . . . . . Entropic 2779 | . . . . . . . . . . . . . . . . 993 . . 1786 Highest Corruption 13 | . 3 3 1 1 1 1 . 13 . . . . . . 6 6 3 8 5 Average Corruption 3 | . 1 3 1 1 1 1 . 9 . . . . . . 5 6 2 7 1 Corruption Purged . | . . . . . . . . . . . . . . . . . . . . Effects 224 | . 11 7 5 6 2 6 . 102 . . . . . . 8 32 5 15 25 Message Errors 52 | . 8 1 1 4 1 2 . 18 . . . . . . 2 4 2 2 7 Matter Fused 27 | . . 1 . . . . . 15 . . . . . . 1 6 2 2 . Heat Flow Errors 18 | . . 2 . . . . . 5 . . . . . . 1 4 . 1 5 Energy Discharges 24 | . 1 1 1 1 . 2 . 8 . . . . . . . 4 . 3 3 Parts Rejected 2 | . . . . . . . . 2 . . . . . . . . . . . Data Loss (minor) 28 | . 1 2 1 1 1 1 . 9 . . . . . . 1 5 1 3 2 Data Loss (major) 5 | . . . . . . . . 2 . . . . . . . 2 . 1 . Misfires 4 | . . . . . . . . 4 . . . . . . . . . . . Alerts 1 | . . . . . . . . 1 . . . . . . . . . . . Misdirections 4 | . . . . . . . . 4 . . . . . . . . . . . Targeting Errors 55 | . 1 . 2 . . 1 . 31 . . . . . . 3 6 . 3 8 Weapon Failures 4 | . . . . . . . . 3 . . . . . . . 1 . . . Overload Shots . | . . . . . . . . . . . . . . . . . . . . Overflow Damage 868 | . . . . . . . 20 80 . . . . . . . 53 7 68 640 Projectiles 302 | . . . . . . . . . . . . . . . . . 7 68 227 Explosions 566 | . . . . . . . 20 80 . . . . . . . 53 . . 413 Melee . | . . . . . . . . . . . . . . . . . . . . Knockbacks 69 | . . . . . . . . . . . . 8 . . 8 6 1 . 46 Impact . | . . . . . . . . . . . . . . . . . . . . Kinetic 59 | . . . . . . . . . . . . 7 . . 7 6 1 . 38 Secondary 10 | . . . . . . . . . . . . 1 . . 1 . . . 8 Self-Inflicted Damage 800 | . . . . 78 . . 77 106 . . . . . . . . 111 . 428 Shots 18 | . . . . 4 . . 3 5 . . . . . . . . 1 . 5 Rammed 1 | . . . . . . . . . . . . . . . . . 1 . . Targets Rammed 1 | . . . . . . . . . . . . . . . . . 1 . . Kicked . | . . . . . . . . . . . . . . . . . . . . Crushed . | . . . . . . . . . . . . . . . . . . . . Highest Temperature 546 | . 132 277 393 20 . 13 112 268 21 44 . 352 98 124 321 235 385 336 546 Average Temperature 107 | . 56 167 64 8 . 6 32 50 21 19 . 161 54 68 144 110 143 153 156 Received Heat Transfer 3857 | . 378 87 231 244 . 63 594 786 . . . 100 . . 76 261 87 9 941 Effects 23 | . . 2 1 . . . . . . . . 3 . . . . 3 . 14 Shutdowns 5 | . . . 1 . . . . . . . . . . . . . 1 . 3 Energy Bleed 7 | . . . . . . . . . . . . . . . . . 2 . 5 Interference 7 | . . 2 . . . . . . . . . 3 . . . . . . 2 Matter Decay 1 | . . . . . . . . . . . . . . . . . . . 1 Short Circuit 2 | . . . . . . . . . . . . . . . . . . . 2 Damage (major) 1 | . . . . . . . . . . . . . . . . . . . 1 Siege Activations 41 | . . . . . . . . . . . . 4 1 1 . 3 3 5 24 Total Turns 561 | . . . . . . . . . . . . 89 1 1 . 14 34 67 355 Longest Duration 60 | . . . . . . . . . . . . 43 1 1 . 7 21 23 60 Robots Corrupted 11 | . . . . 1 . . . 1 . . . . . . . . 4 3 2 Combat Hostiles 11 | . . . . 1 . . . 1 . . . . . . . . 4 3 2 Parts Fried 31 | . 1 . . 4 . . . 7 . . . . . . . . 14 3 2 Impact Corruptions . | . . . . . . . . . . . . . . . . . . . . Robots Melted . | . . . . . . . . . . . . . . . . . . . . Combat Hostiles . | . . . . . . . . . . . . . . . . . . . . Parts Melted 11 | . . . . . . . . 1 . . . . . . . . 6 1 3 Heat Transferred 4424 | . 625 . . . . . 100 800 . . . . . . . . 711 1036 1152 Parts Sabotaged 8 | . . . . . . . . . . . . . . . . . . . 8 Parts Stolen . | . . . . . . . . . . . . . . . . . . . . Parts Stripped . | . . . . . . . . . . . . . . . . . . . . Power Chain Reactions 10 | . . . . 1 . . 1 7 . . . . . . . . 1 . . Missiles Intercepted . | . . . . . . . . . . . . . . . . . . . . Alert | -11 -10 -10 -9 -9 -9 -8 -8 -7 -6 -6 -6 -5 -5 -5 -5 -4 -4 -3 -2 ------- Run | Scr Mat Min Mat Min Exi Min Mat Fac Fac Was Fac Fac Upp Upp War Pro Fac Res Res Peak Influence 2454 | 5 357 119 492 502 . 133 1080 1155 575 194 26 700 . . . . 167 184 2454 Initial 565 | . 3 64 . 141 . . . 479 565 194 . 12 . . . . . 58 47 Average 383 | 1 194 83 221 160 . 22 476 574 563 60 20 485 . . . . 80 75 738 Maximum Alert Level 5 | . 1 . 2 2 . . 3 4 2 . . 3 . . . . . . 5 Low Security (%) 46 | 100 42 100 44 57 . 100 24 . . 100 100 16 . . . . 100 100 46 Level 1 20 | . 57 . 51 28 . . 30 15 . . . 1 . . . . . . 4 Level 2 14 | . . . 3 13 . . 9 58 100 . . 81 . . . . . . 1 Level 3 10 | . . . . . . . 35 19 . . . . . . . . . . 13 Level 4 5 | . . . . . . . . 6 . . . . . . . . . . 23 Level 5 . | . . . . . . . . . . . . . . . . . . . 1 High Security 1 | . . . . . . . . . . . . . . . . . . . 8 Max Security . | . . . . . . . . . . . . . . . . . . . . Squads Dispatched 50 | . 5 . 6 1 . . 7 18 4 . . 3 . . . 1 2 1 2 Investigation 14 | . 4 . 3 1 . . 3 2 . . . 1 . . . . . . . Extermination 9 | . . . . . . . . 4 1 . . 1 . . . . 2 1 . Reinforcement 14 | . 1 . 3 . . . 3 3 2 . . . . . . . . . 2 Assault 7 | . . . . . . . 1 3 1 . . 1 . . . 1 . . . Garrison 6 | . . . . . . . . 6 . . . . . . . . . . . Intercept . | . . . . . . . . . . . . . . . . . . . . Construction Impeded 2 | . . . 1 . . . . 1 . . . . . . . . . . . Haulers Reinforced . | . . . . . . . . . . . . . . . . . . . . Stealth | -11 -10 -10 -9 -9 -9 -8 -8 -7 -6 -6 -6 -5 -5 -5 -5 -4 -4 -3 -2 --------- Run | Scr Mat Min Mat Min Exi Min Mat Fac Fac Was Fac Fac Upp Upp War Pro Fac Res Res Distress Signals 27 | . 3 . 8 . . . 5 1 . . . . . . . . 1 1 8 Communications Jammed . | . . . . . . . . . . . . . . . . . . . . Distress Signals . | . . . . . . . . . . . . . . . . . . . . Times Spotted 570 | . 39 2 59 37 . 6 81 76 . 6 . 29 1 1 31 23 14 11 154 Peak Tracking Total 23 | . 7 2 7 7 . 3 5 6 2 3 . 8 1 1 12 8 3 3 23 Tactical Retreats 47 | . . . 2 3 . . 16 9 . . . 3 . . . . 1 . 13 Traps | -11 -10 -10 -9 -9 -9 -8 -8 -7 -6 -6 -6 -5 -5 -5 -5 -4 -4 -3 -2 ------- Run | Scr Mat Min Mat Min Exi Min Mat Fac Fac Was Fac Fac Upp Upp War Pro Fac Res Res Traps Triggered 9 | . 2 . 1 . . . 1 3 1 . . . . . . . . 1 . Indirectly . | . . . . . . . . . . . . . . . . . . . . Trap Hack Attempts . | . . . . . . . . . . . . . . . . . . . . Triggered . | . . . . . . . . . . . . . . . . . . . . Disarmed . | . . . . . . . . . . . . . . . . . . . . Reprogrammed 4 | . . . 4 . . . . . . . . . . . . . . . . Reused 4 | . . . 2 . . . 2 . . . . . . . . . . . . Traps Extracted . | . . . . . . . . . . . . . . . . . . . . Installed 5 | . . . . . . . 5 . . . . . . . . . . . . Triggered 17 | . . . 2 . . . 2 . . . . . 1 . 12 . . . . Machines | -11 -10 -10 -9 -9 -9 -8 -8 -7 -6 -6 -6 -5 -5 -5 -5 -4 -4 -3 -2 ---------- Run | Scr Mat Min Mat Min Exi Min Mat Fac Fac Was Fac Fac Upp Upp War Pro Fac Res Res Machines Disabled 27 | . . . 3 . . . 3 9 . . . 5 . . . 1 1 . 5 Max in Single Turn 3 | . . . 2 . . . 1 3 . . . 2 . . . 1 1 . 1 Garrison Access 6 | . . . . . . . . 1 . . 1 1 . . . . 1 . 2 Machines Sabotaged . | . . . . . . . . . . . . . . . . . . . . Garrisons Compromised . | . . . . . . . . . . . . . . . . . . . . Overloaded Fab Kills . | . . . . . . . . . . . . . . . . . . . . Fab Network Shutdowns . | . . . . . . . . . . . . . . . . . . . . Hacking | -11 -10 -10 -9 -9 -9 -8 -8 -7 -6 -6 -6 -5 -5 -5 -5 -4 -4 -3 -2 --------- Run | Scr Mat Min Mat Min Exi Min Mat Fac Fac Was Fac Fac Upp Upp War Pro Fac Res Res Machines Accessed 65 | . 9 . 14 1 1 . 16 9 2 . 2 4 . . 2 . 3 1 1 Terminals 38 | . 7 . 10 1 . . 9 4 . . 1 3 . . . . 2 1 . Fabricators 2 | . . . . . . . . 2 . . . . . . . . . . . Repair Stations 5 | . 1 . 1 . . . 2 1 . . . . . . . . . . . Recycling Units 6 | . 1 . 2 . . . 2 1 . . . . . . . . . . . Scanalyzers 4 | . . . 1 . . . 2 . 1 . . . . . . . . . . Garrison Access 7 | . . . . . . . 1 1 1 . 1 1 . . . . 1 . 1 Total Hacks 177 | . 29 . 48 3 1 . 43 23 7 . 5 6 . . 3 . 6 2 1 Successful 102 | . 13 . 32 1 1 . 24 14 6 . 3 2 . . 3 . 2 1 . Failed 74 | . 16 . 15 2 . . 19 9 1 . 2 4 . . . . 4 1 1 Catastrophic 11 | . 3 . 1 . . . 1 3 1 . . 2 . . . . . . . Database Lockouts 1 | . . . 1 . . . . . . . . . . . . . . . . Manual 83 | . 22 . 25 3 . . 18 10 . . . 4 . . . . 1 . . Terminals 111 | . 23 . 33 3 . . 26 12 . . 3 5 . . . . 4 2 . Fabricators 5 | . . . . . . . . 5 . . . . . . . . . . . Repair Stations 19 | . 4 . 5 . . . 8 2 . . . . . . . . . . . Recycling Units 9 | . 2 . 2 . . . 2 3 . . . . . . . . . . . Scanalyzers 19 | . . . 8 . . . 5 . 6 . . . . . . . . . . Garrison Access 10 | . . . . . . . 2 1 1 . 2 1 . . . . 2 . 1 Terminal Hacks 46 | . 6 . 14 1 1 . 11 5 . . 2 1 . . 3 . 1 1 . Record 4 | . . . . . 1 . . . . . . . . . 2 . . 1 . Part Schematic 4 | . 2 . . . . . . . . . 2 . . . . . . . . Robot Analysis 3 | . . . 1 . . . 2 . . . . . . . . . . . . Prototype ID Bank 15 | . 4 . 4 1 . . 6 . . . . . . . . . . . . Open Door 1 | . . . . . . . . . . . . . . . 1 . . . . Level Access Points 1 | . . . . . . . . 1 . . . . . . . . . . . Branch Access Points 1 | . . . . . . . . . . . . 1 . . . . . . . Unreport Threat 4 | . . . 2 . . . . 2 . . . . . . . . . . . Locate Traps 6 | . . . 2 . . . 1 2 . . . . . . . . 1 . . Reprogram Traps 1 | . . . 1 . . . . . . . . . . . . . . . . Security Status 1 | . . . 1 . . . . . . . . . . . . . . . . Patrol Status 1 | . . . 1 . . . . . . . . . . . . . . . . Transport Status 1 | . . . 1 . . . . . . . . . . . . . . . . Hauler Manifests 2 | . . . 1 . . . 1 . . . . . . . . . . . . Zone Layout 1 | . . . . . . . 1 . . . . . . . . . . . . Fabricator Hacks 4 | . . . . . . . . 4 . . . . . . . . . . . Load Schematic 2 | . . . . . . . . 2 . . . . . . . . . . . Build 2 | . . . . . . . . 2 . . . . . . . . . . . Repair Station Hacks 15 | . 4 . 4 . . . 5 2 . . . . . . . . . . . Scan Component 8 | . 2 . 2 . . . 3 1 . . . . . . . . . . . Repair 7 | . 2 . 2 . . . 2 1 . . . . . . . . . . . Recycling Unit Hacks 1 | . . . . . . . . 1 . . . . . . . . . . . Retrieve Components 1 | . . . . . . . . 1 . . . . . . . . . . . Scanalyzer 17 | . . . 8 . . . 3 . 6 . . . . . . . . . . Insert Component 9 | . . . 4 . . . 2 . 3 . . . . . . . . . . Analyze 8 | . . . 4 . . . 1 . 3 . . . . . . . . . . Garrison Access Hacks 4 | . . . . . . . . 1 . . 1 1 . . . . 1 . . Seal Access 4 | . . . . . . . . 1 . . 1 1 . . . . 1 . . Unauthorized Hacks 15 | . 3 . 6 . . . 5 1 . . . . . . . . . . . Terminals 10 | . 2 . 4 . . . 3 1 . . . . . . . . . . . Track 3 | . . . 2 . . . 1 . . . . . . . . . . . . Botnet 4 | . 1 . 1 . . . 1 1 . . . . . . . . . . . Operators 3 | . 1 . 1 . . . 1 . . . . . . . . . . . . Fabricators . | . . . . . . . . . . . . . . . . . . . . Repair Stations . | . . . . . . . . . . . . . . . . . . . . Recycling Units 5 | . 1 . 2 . . . 2 . . . . . . . . . . . . Tunnel 5 | . 1 . 2 . . . 2 . . . . . . . . . . . . Scanalyzers . | . . . . . . . . . . . . . . . . . . . . Garrison Access . | . . . . . . . . . . . . . . . . . . . . Data Cores Recovered . | . . . . . . . . . . . . . . . . . . . . Used . | . . . . . . . . . . . . . . . . . . . . Hacking Detections 53 | . 8 . 12 1 . . 14 6 2 . 2 3 . . . . 3 1 1 Full Trace Events 9 | . 4 . 1 1 . . . 2 . . . 1 . . . . . . . Feedback Events 2 | . 1 . . . . . . 1 . . . . . . . . . . . Corruption 2 | . 1 . . . . . . 1 . . . . . . . . . . . Feedback Blocked . | . . . . . . . . . . . . . . . . . . . . Robot Schematics Acquired . | . . . . . . . . . . . . . . . . . . . . Robots Built . | . . . . . . . . . . . . . . . . . . . . Matter . | . . . . . . . . . . . . . . . . . . . . Time . | . . . . . . . . . . . . . . . . . . . . Total Robot Build Rating . | . . . . . . . . . . . . . . . . . . . . Part Schematics Acquired 12 | . 2 . 4 . . . 1 . 3 . 2 . . . . . . . . Parts Built 4 | . . . . . . . . 4 . . . . . . . . . . . Matter 292 | . . . . . . . . 292 . . . . . . . . . . . Time 109 | . . . . . . . . 109 . . . . . . . . . . . Total Part Build Rating 12 | . . . . . . . . 12 . . . . . . . . . . . Parts Repaired 7 | . 2 . 2 . . . 2 1 . . . . . . . . . . . Time 169 | . 52 . 52 . . . 52 13 . . . . . . . . . . . Parts Recycled . | . . . . . . . . . . . . . . . . . . . . Recycled Matter . | . . . . . . . . . . . . . . . . . . . . Retrieved Matter . | . . . . . . . . . . . . . . . . . . . . Retrieved Components 3 | . . . . . . . . 3 . . . . . . . . . . . Parts Scanalyzed 8 | . . . 4 . . . 1 . 3 . . . . . . . . . . Part Schematics Acquired 8 | . . . 4 . . . 1 . 3 . . . . . . . . . . Parts Damaged 1 | . . . 1 . . . . . . . . . . . . . . . . Bothacking | -11 -10 -10 -9 -9 -9 -8 -8 -7 -6 -6 -6 -5 -5 -5 -5 -4 -4 -3 -2 ------------ Run | Scr Mat Min Mat Min Exi Min Mat Fac Fac Was Fac Fac Upp Upp War Pro Fac Res Res Used RIF Installer . | . . . . . . . . . . . . . . . . . . . . Robots Hacked . | . . . . . . . . . . . . . . . . . . . . Non-combat . | . . . . . . . . . . . . . . . . . . . . Combat . | . . . . . . . . . . . . . . . . . . . . Robot Hacks Applied . | . . . . . . . . . . . . . . . . . . . . Relay Couplers Released 14 | . . . . . . . . . . . . . . . . . 3 . 11 Machine Destruction 2 | . . . . . . . . . . . . . . . . . . . 2 Programmers 12 | . . . . . . . . . . . . . . . . . 3 . 9 Robots Rewired 12 | . . . . . . . . . 2 . . 5 . . . 2 1 1 1 Allies Hacked . | . . . . . . . . . . . . . . . . . . . . Hacks Repelled 1 | . . . . . . . . . . . . . . . 1 . . . . Allies | -11 -10 -10 -9 -9 -9 -8 -8 -7 -6 -6 -6 -5 -5 -5 -5 -4 -4 -3 -2 -------- Run | Scr Mat Min Mat Min Exi Min Mat Fac Fac Was Fac Fac Upp Upp War Pro Fac Res Res Total Allies 35 | . . . . 4 . . . . 2 19 . 5 . . . 2 1 1 1 Largest Group 19 | . . . . 4 4 3 . . 2 19 19 7 2 2 2 2 1 1 1 Highest-Rated Group 714 | . . . . 71 71 40 . . 24 714 714 258 90 90 90 78 47 64 88 Highest-Rated Ally 88 | . . . . 31 31 16 . . 12 50 50 50 49 49 49 48 47 64 88 Total Orders 16 | . . . . . . . . . 1 . . . . . 1 . . 1 13 ROAM 1 | . . . . . . . . . 1 . . . . . . . . . . AID 1 | . . . . . . . . . . . . . . . 1 . . . . EXPLORE 7 | . . . . . . . . . . . . . . . . . . . 7 RETURN 7 | . . . . . . . . . . . . . . . . . . 1 6 Ally Attacks 121 | . . . . . . 20 . . 13 18 2 45 9 2 2 5 2 . 3 Total Damage 3420 | . . . . . . 241 . . 88 219 38 1844 462 39 253 130 63 . 43 Kills 19 | . . . . . . 2 . . . . . 11 5 . 1 . . . . Allies Corrupted . | . . . . . . . . . . . . . . . . . . . . Allies Melted . | . . . . . . . . . . . . . . . . . . . . Intel | -11 -10 -10 -9 -9 -9 -8 -8 -7 -6 -6 -6 -5 -5 -5 -5 -4 -4 -3 -2 ------- Run | Scr Mat Min Mat Min Exi Min Mat Fac Fac Was Fac Fac Upp Upp War Pro Fac Res Res Robot Analysis Total 3 | . . . 1 . . . 2 . . . . . . . . . . . . Derelict Logs Recovered 7 | . . . . 2 . . . . . . . . 1 3 . 1 . . . Drone Launches 17 | . . . . . . . . . . . . . . . . . . 3 14 Drone Recoveries 10 | . . . . . . . . . . . . . . . . . . 3 7 Exploration | -11 -10 -10 -9 -9 -9 -8 -8 -7 -6 -6 -6 -5 -5 -5 -5 -4 -4 -3 -2 ------------- Run | Scr Mat Min Mat Min Exi Min Mat Fac Fac Was Fac Fac Upp Upp War Pro Fac Res Res Turns Passed 25067 | 61 1709 515 2724 1745 483 833 3311 2279 367 867 234 843 481 572 909 919 1022 644 4549 Spaces Moved 12305 | 34 1017 339 1503 824 253 406 1417 914 181 510 145 389 286 340 481 454 477 250 2085 Core 109 | 2 . . . . . . . . . 107 . . . . . . . . . Treads 8140 | . 9 . 35 652 253 406 1417 914 181 403 145 389 286 340 481 454 477 203 1095 Legs . | . . . . . . . . . . . . . . . . . . . . Wheels 4056 | 32 1008 339 1468 172 . . . . . . . . . . . . . 47 990 Hover . | . . . . . . . . . . . . . . . . . . . . Flight . | . . . . . . . . . . . . . . . . . . . . Fastest Speed 50 | 50 100 140 110 140 160 180 180 178 183 50 160 160 163 163 163 160 160 160 145 Average Speed 165 | 97 124 140 141 173 179 180 193 192 183 141 160 162 163 164 165 160 160 174 174 Slowest Speed 290 | 100 200 140 220 180 180 180 260 206 183 220 160 163 163 166 166 163 160 185 290 Overloaded Moves . | . . . . . . . . . . . . . . . . . . . . Propulsion Burnouts . | . . . . . . . . . . . . . . . . . . . . Robots Hopped . | . . . . . . . . . . . . . . . . . . . . Cave-ins Triggered . | . . . . . . . . . . . . . . . . . . . . Exploration Rate (%) 55 | 3 93 69 98 99 59 79 97 28 6 96 7 13 61 66 69 68 14 9 78 Regions Visited 19 Branch Regions 8 Pre-discovered Areas 6 | . 1 . 2 . 1 . 2 . . . . . . . . . . . . Known Exits Taken 6 | . . . . . . . . 1 . . . 1 . 1 . 1 1 1 . Unknown Exits Taken 11 | 1 1 1 1 1 1 1 1 . . . 1 . 1 . 1 . . . . Scrap Searched 12 | . . 1 . 2 . 1 . . . . . . 3 1 . 4 . . . Spaces Dug 16 | . . . . . . . 1 3 . . . . . . . . . . 12 Terrain Destroyed 722 | . . . 28 5 . 1 9 78 . . . 50 2 3 10 84 21 3 428 Melee 4 | . . . . . . . 1 3 . . . . . . . . . . . Projectile 132 | . . . . . . 1 2 . . . . 23 2 3 10 34 3 3 51 AOE 586 | . . . 28 5 . . 6 75 . . . 27 . . . 50 18 . 377 Terrain Rammed . | . . . . . . . . . . . . . . . . . . . . Walls Destroyed . | . . . . . . . . . . . . . . . . . . . . Machines Disabled . | . . . . . . . . . . . . . . . . . . . . Actions | -11 -10 -10 -9 -9 -9 -8 -8 -7 -6 -6 -6 -5 -5 -5 -5 -4 -4 -3 -2 --------- Run | Scr Mat Min Mat Min Exi Min Mat Fac Fac Was Fac Fac Upp Upp War Pro Fac Res Res Total 15725 | 54 1307 359 1900 998 285 484 1828 1250 219 608 147 548 299 350 567 574 731 460 2757 Wait 1157 | 2 135 7 147 51 4 59 115 75 . 2 1 73 8 5 38 37 126 86 186 Move 12287 | 33 1016 338 1502 823 252 405 1416 913 181 509 144 388 285 339 480 453 476 249 2085 Hop . | . . . . . . . . . . . . . . . . . . . . Pick Up 314 | 8 26 . 49 9 23 . 60 47 10 12 . 3 . 1 2 4 18 8 34 Fast Attach 187 | 6 5 1 7 2 1 . 26 12 2 16 1 2 1 . 9 9 15 6 66 Attach 124 | . 3 . 8 10 . . 5 14 2 8 . 3 . . . 7 11 11 42 Detach 79 | . 4 1 5 . . . 6 2 . . . 1 1 . . 3 10 12 34 Swap 124 | . 21 . 16 5 . 3 22 22 1 2 . 3 1 2 4 . 6 2 14 Drop 302 | 2 21 . 48 . 5 3 63 29 7 10 1 5 1 1 14 3 19 1 69 Fire 1032 | 3 76 12 118 92 . 14 109 133 2 49 . 42 2 2 20 46 44 48 220 Melee 4 | . . . . . . . 1 3 . . . . . . . . . . . Ram . | . . . . . . . . . . . . . . . . . . . . Kick . | . . . . . . . . . . . . . . . . . . . . Crush 1 | . . . . . . . . . . . . . . . . . 1 . . Escape Stasis 10 | . . . . . . . . . . . . . . . . . . 6 4 Rewire 99 | . . . . 6 . . . . 14 . . 28 . . . 12 5 31 3 Trap 5 | . . . . . . . 5 . . . . . . . . . . . . Miscellaneous . | . . . . . . . . . . . . . . . . . . . . Route ------- -11/Scrapyard -10/Materials (discovered 3 exits: *Mat x2 / [*Min]) -10/Mines -9/Materials (discovered 5 exits: *Mat x3 / *Min x2) -9/Mines (discovered 3 exits: *Mat x2 / *Exi) -9/Exiles -8/Mines -8/Materials (discovered 4 exits: *Fac x3 / *Sto) -7/Factory (discovered 4 exits: *Fac x4) -6/Factory -6/Waste -6/Factory -5/Factory (discovered 3 exits: *Fac / *Upp x2) -5/Upper Caves -5/Upper Caves -5/Warlord -4/Proximity Caves -4/Factory (discovered 3 exits: *Res / Upp / Arm) -3/Research -2/Research History --------- Turn | Location | Event 20 | -11/Scrapyard | Discovered new exit (range 15) 62 | -11/Scrapyard | Entered Materials 312 | -10/Materials | Build established: Mutant 678 | -10/Materials | Discovered new exit (range 7) 888 | -10/Materials | Discovered new exit (range 16) 1273 | -10/Materials | Discovered new exit (range 14) 1589 | -10/Materials | Repaired Hcp. Storage Unit 1630 | -10/Materials | Repaired Com. Wheel 1771 | -10/Materials | Entered Mines 1775 | -10/Mines | Met a Derelict bent on vengeance 1839 | -10/Mines | Core integrity fell below 50% 1906 | -10/Mines | Build established: Hauler-Mutant 2039 | -10/Mines | Discovered new exit (range 14) 2286 | -10/Mines | Entered Materials 2286 | -9/Materials | Evolved 2 slots: Propulsion x1, Utility x1 2641 | -9/Materials | Discovered new exit (range 10) 3057 | -9/Materials | Central database locked down 3174 | -9/Materials | Discovered new exit (range 6) 3532 | -9/Materials | Discovered new exit (range 16) 4014 | -9/Materials | Repaired Hcp. Storage Unit 4042 | -9/Materials | Repaired Hcp. Storage Unit 4239 | -9/Materials | Discovered new exit (range 6) 4656 | -9/Materials | Discovered new exit (range 6) 5010 | -9/Materials | Entered Mines 5116 | -9/Mines | Core integrity fell below 50% 5266 | -9/Mines | A weapon hastily lodged in a ceiling crevice suddenly fell to the ground 5324 | -9/Mines | Assembled infested the area 5329 | -9/Mines | Assisted by a Guerilla fighting off Assembled 5332 | -9/Mines | Discovered new exit (range 5) 5400 | -9/Mines | Lost 8 parts (1p3n4w) 5832 | -9/Mines | Learned Materials garrison access intel 5912 | -9/Mines | Found a hidden stash of uninstalled traps 6059 | -9/Mines | Core integrity fell below 20% 6185 | -9/Mines | Deemed a non-threat by the Exiles lab entrance 6185 | -9/Mines | Discovered new exit (range 5) 6407 | -9/Mines | Discovered new exit (range 5) 6520 | -9/Mines | Assisted by bots powering up and referring to "LRC-V3" 6610 | -9/Mines | Received a Mining Laser from a helpful Derelict 6755 | -9/Mines | Entered Exiles 6755 | -9/Exiles | Accompanied by 4 allies 6803 | -9/Exiles | Met 8R-AWN 6832 | -9/Exiles | Met EX-HEX 6902 | -9/Exiles | Met EX-DEC 6913 | -9/Exiles | Learned location of Zion (-6) 7213 | -9/Exiles | Discovered new exit (range 14) 7238 | -9/Exiles | Entered Mines 7238 | -8/Mines | Accompanied by 3 allies 7406 | -8/Mines | Discovered new exit (range 9) 8071 | -8/Mines | Entered Materials 8071 | -8/Materials | Evolved 2 slots: Utility x2 8072 | -8/Materials | Identified exit to Storage 8073 | -8/Materials | Loaded intel: 1 garrison access location 8904 | -8/Materials | Discovered new exit (range 13) 9831 | -8/Materials | Discovered new exit (range 13) 9927 | -8/Materials | Repaired Hcp. Storage Unit 10013 | -8/Materials | Repaired Hcp. Storage Unit 10537 | -8/Materials | Discovered new exit (range 9) 11271 | -8/Materials | First assault squad dispatched 11382 | -8/Materials | Entered Factory 11382 | -7/Factory | Evolved 2 slots: Utility x2 12049 | -7/Factory | Fabricated Imp. Weapon Shielding (x2) 12528 | -7/Factory | Garrison activated, responded to threat 12622 | -7/Factory | System corruption reached 10% 12739 | -7/Factory | Repaired Hcp. Storage Unit 12878 | -7/Factory | Fabricated Imp. Weapon Shielding (x2) 12982 | -7/Factory | First assault squad dispatched 13036 | -7/Factory | Destroyed 7 combat bots 13138 | -7/Factory | Destroyed 8 combat bots 13195 | -7/Factory | Identified exit to Factory 13328 | -7/Factory | Garrison activated, responded to threat 13507 | -7/Factory | Destroyed 8 combat bots 13661 | -7/Factory | Entered another Factory area 13661 | -6/Factory | Evolved 2 slots: Utility x2 13781 | -6/Factory | Discovered new exit (range 10) 14011 | -6/Factory | First assault squad dispatched 14028 | -6/Factory | Sucked down chute 14028 | -6/Factory | Entered Waste 14035 | -6/Waste | 1 allies followed down the chute 14039 | -6/Waste | Spotted C-40 Crusher 14043 | -6/Waste | Spotted C-40 Crusher 14076 | -6/Waste | Destroyed C-40 Crusher 14098 | -6/Waste | Crushed by Compactor (1 part destroyed, 2 dropped) 14101 | -6/Waste | Crushed by Compactor (1 part destroyed, 1 dropped) 14101 | -6/Waste | Destroyed C-40 Crusher 14162 | -6/Waste | Destroyed C-40 Crusher 14171 | -6/Waste | Crushed by Compactor (1 part destroyed, 2 dropped) 14174 | -6/Waste | Crushed by Compactor (1 part destroyed, 2 dropped) 14177 | -6/Waste | Crushed by Compactor (1 part destroyed, 2 dropped) 14180 | -6/Waste | Destroyed C-40 Crusher 14186 | -6/Waste | Crushed by Compactor (1 part destroyed, 2 dropped) 14189 | -6/Waste | Crushed by Compactor (1 part destroyed, 1 dropped) 14190 | -6/Waste | Spotted C-40 Crusher 14198 | -6/Waste | Spotted C-40 Crusher 14220 | -6/Waste | Lost 6 parts (1p1n2u2w) 14271 | -6/Waste | Destroyed C-40 Crusher 14286 | -6/Waste | Destroyed C-40 Crusher 14342 | -6/Waste | Found Damper Plating 14346 | -6/Waste | Found Damper Plating 14391 | -6/Waste | Found Damper Plating 14459 | -6/Waste | Build established: Hacker-Mutant 14497 | -6/Waste | Discovered new exit (range 11) 14643 | -6/Waste | Warlord forces began an assault 14895 | -6/Waste | Entered Factory 14895 | -6/Factory | Accompanied by 19 allies 15083 | -6/Factory | Discovered new exit (range 10) 15129 | -6/Factory | Entered another Factory area 15129 | -5/Factory | Accompanied by 7 allies 15129 | -5/Factory | Evolved 2 slots: Propulsion x1, Utility x1 15259 | -5/Factory | Discovered new exit (range 16) 15445 | -5/Factory | Destroyed 7 combat bots 15497 | -5/Factory | Identified exit to Upper Caves 15729 | -5/Factory | First assault squad dispatched 15761 | -5/Factory | Build established: Scavenger-Mutant 15972 | -5/Factory | Entered Upper Caves 15972 | -5/Upper Caves | Accompanied by 2 allies 15989 | -5/Upper Caves | Learned Factory emergency access door positions 16422 | -5/Upper Caves | Discovered new exit (range 20) 16453 | -5/Upper Caves | Entered another Upper Caves area 16453 | -5/Upper Caves | Accompanied by 2 allies 16497 | -5/Upper Caves | Build established: Hacker-Mutant 16501 | -5/Upper Caves | Attracted the attention of an 0b10 checkpoint 16709 | -5/Upper Caves | Identified exit to Warlord 16983 | -5/Upper Caves | Learned 8 Factory zone layouts 17025 | -5/Upper Caves | Entered Warlord 17025 | -5/Warlord | Accompanied by 2 allies 17342 | -5/Warlord | Visited the Vortex Lab 17354 | -5/Warlord | Warlord's base attacked by MAIN.C 17359 | -5/Warlord | Found Prototype Launcher 17359 | -5/Warlord | Identified Vortex Catalyst Activator 17462 | -5/Warlord | Found Prototype Device 17462 | -5/Warlord | Identified Minesniffer Drone Bay 17501 | -5/Warlord | Met Warlord 17704 | -5/Warlord | Warlord forces counterattacked 17744 | -5/Warlord | Spotted Striker 17779 | -5/Warlord | Spotted Executioner 17787 | -5/Warlord | Spotted Executioner 17790 | -5/Warlord | P-80 Master assimilated allied YH-ORQ(g) 17863 | -5/Warlord | Found Prototype Processor 17863 | -5/Warlord | Identified Exp. Core Analyzer 17870 | -5/Warlord | Found Prototype Processor 17870 | -5/Warlord | Identified Exp. Targeting Computer 17883 | -5/Warlord | Spotted Executioner 17905 | -5/Warlord | Discovered new exit (range 21) 17934 | -5/Warlord | Entered Proximity Caves 17961 | -4/Proximity Caves | Attracted the attention of an 0b10 checkpoint 18100 | -4/Proximity Caves | Attracted the attention of an 0b10 outpost 18140 | -4/Proximity Caves | Build established: Scavenger-Mutant 18229 | -4/Proximity Caves | Lost 4 parts (2p2n) 18236 | -4/Proximity Caves | Destroyed 7 combat bots 18807 | -4/Proximity Caves | Identified exit to Factory 18853 | -4/Proximity Caves | Entered Factory 18853 | -4/Factory | Evolved 2 slots: Power x1, Utility x1 18854 | -4/Factory | Identified exit to Armory 18855 | -4/Factory | Identified exit to Upper Caves 18868 | -4/Factory | Found Quantum Capacitor 18879 | -4/Factory | Found Quantum Capacitor 19221 | -4/Factory | Spotted B-86 Titan 19491 | -4/Factory | Found Prototype Device 19491 | -4/Factory | Identified Exp. Terrain Scanner 19568 | -4/Factory | Build established: Scavenger-Skirmisher 19836 | -4/Factory | Discovered new exit (range 3) 19852 | -4/Factory | Identified exit to Research 19875 | -4/Factory | Entered Research 19875 | -3/Research | Evolved 2 slots: Utility x2 20132 | -3/Research | Found Prototype Processor 20132 | -3/Research | Identified Exp. Melee Analysis Suite 20383 | -3/Research | Discovered new exit (range 17) 20504 | -3/Research | Identified exit to Research 20519 | -3/Research | Entered another Research area 20519 | -2/Research | Accompanied by 1 ally 20519 | -2/Research | Warlord forces began assault on 0b10 20519 | -2/Research | Evolved 2 slots: Utility x2 20629 | -2/Research | Research machine network offline 21008 | -2/Research | Borebot progress halted 21069 | -2/Research | Spotted Striker 21069 | -2/Research | Spotted Executioner 21089 | -2/Research | Destroyed Striker 21123 | -2/Research | Lost 3 parts (1u2w) 21139 | -2/Research | Borebot progress halted 21211 | -2/Research | Spotted Striker 21213 | -2/Research | Spotted Striker 21214 | -2/Research | Destroyed Striker 21228 | -2/Research | Rewired Striker 21338 | -2/Research | Spotted Executioner 21384 | -2/Research | Spotted Striker 21425 | -2/Research | Spotted Executioner 21431 | -2/Research | Destroyed Executioner 21457 | -2/Research | Destroyed Executioner 21674 | -2/Research | Met up with Warlord 21676 | -2/Research | Warlord invited to help at Command 22149 | -2/Research | Spotted Striker 22192 | -2/Research | Lost 3 parts (2u1w) 22590 | -2/Research | Spotted Striker 22592 | -2/Research | Spotted Striker 22813 | -2/Research | Spotted Executioner 22817 | -2/Research | Destroyed Executioner 22823 | -2/Research | Spotted Executioner 22837 | -2/Research | Spotted Striker 22843 | -2/Research | Spotted Executioner 22845 | -2/Research | Destroyed Executioner 22854 | -2/Research | Spotted Striker 22871 | -2/Research | Core integrity fell below 50% 22878 | -2/Research | Destroyed 13 combat bots 22885 | -2/Research | Destroyed Striker 22894 | -2/Research | Destroyed Executioner 22899 | -2/Research | Destroyed Striker 22911 | -2/Research | Lost 12 parts (2p2n5u3w) 22922 | -2/Research | Spotted Striker 22924 | -2/Research | Spotted Striker 22938 | -2/Research | Spotted Executioner 22941 | -2/Research | Destroyed Striker 22945 | -2/Research | Destroyed Striker 22950 | -2/Research | Destroyed Executioner 22950 | -2/Research | Spotted Executioner 22957 | -2/Research | Destroyed Executioner 23016 | -2/Research | Spotted Executioner 23023 | -2/Research | Destroyed Executioner 23107 | -2/Research | Found Exp. Targeting Computer 23112 | -2/Research | Found Exp. Core Analyzer 23221 | -2/Research | Spotted Executioner 23273 | -2/Research | Spotted Executioner 23275 | -2/Research | Spotted Striker 23290 | -2/Research | Destroyed Executioner 23293 | -2/Research | Destroyed Striker 23320 | -2/Research | Spotted Striker 23325 | -2/Research | Spotted Executioner 23344 | -2/Research | Spotted Executioner 23345 | -2/Research | Build established: Scavenger-Mutant 23352 | -2/Research | Destroyed Executioner 23358 | -2/Research | Destroyed Executioner 23422 | -2/Research | Found Exp. Targeting Computer 23479 | -2/Research | Spotted Striker 23521 | -2/Research | Found Prototype Device 23521 | -2/Research | Identified Adv. Kinecellerator 23525 | -2/Research | Spotted Striker 23530 | -2/Research | Found Exp. Targeting Computer 23545 | -2/Research | Destroyed Striker 23639 | -2/Research | Spotted Executioner 23640 | -2/Research | Spotted Striker 23645 | -2/Research | Destroyed Executioner 23648 | -2/Research | Destroyed Striker 23675 | -2/Research | Spotted B-90 Cyclops 23700 | -2/Research | Destroyed B-90 Cyclops 23721 | -2/Research | Destroyed 7 combat bots 23723 | -2/Research | Found Prototype Device 23723 | -2/Research | Identified Exp. Transmission Jammer 23730 | -2/Research | Lost 3 parts (1p1n1u) 23765 | -2/Research | Found Quantum Capacitor 24092 | -2/Research | Borebot progress halted 24270 | -2/Research | Found Fusion Bomb Launcher 24434 | -2/Research | Spotted Striker 24475 | -2/Research | Spotted Striker 24659 | -2/Research | High security lockdown imminent 24674 | -2/Research | Warlord destroyed during the assault 24739 | -2/Research | High security lockdown engaged 24768 | -2/Research | Spotted Striker 24770 | -2/Research | Spotted Striker 24774 | -2/Research | Destroyed Striker 24776 | -2/Research | Destroyed Striker 24808 | -2/Research | Spotted B-90 Cyclops 24992 | -2/Research | Destroyed 8 combat bots 25035 | -2/Research | Destroyed Investigator 25042 | -2/Research | Spotted Executioner 25063 | -2/Research | Core integrity fell below 20% 25068 | -2/Research | Destroyed by L-61 Swordsman with Power Sword Last Messages --------------- 25056_ Acquired 23 matter. 25056_ Com. Linear Accelerator destroyed. 25056_ Biometal Heavy Treads destroyed. 25057_ Penetrated by Slug. 25057_ Slug penetrates Earth. 25059_ |VXIXVORXK%DC>=JBPO,G0F